[Event "Titled Tuesday Blitz October 11 Early 2022"]
[White "Sadubayev, Airat"]
[Black "Xie, Bryan"]
[WhiteFideId "13713264"]
[BlackFideId "30941296"]
[WhiteElo "2215"]
[BlackElo "2033"]
[Result "1-0"]
[Round "01"]
[TimeControl "180+1"]
[Date "2022.10.12"]
[WhiteClock "0:00:35"]
[BlackClock "0:00:08"]

1. e4 {[%clk 0:02:56]}  c5 {[%clk 0:02:59]} 2. Nf3 {[%clk 0:02:53]}  e6 {[%clk 0:02:59]} 3. d4 {[%clk 0:02:52]}  cxd4 {[%clk 0:03:00]} 4. Nxd4 {[%clk 0:02:52]}  Nc6 {[%clk 0:03:01]} 5. Nc3 {[%clk 0:02:52]}  Qc7 {[%clk 0:03:00]} 6. Be3 {[%clk 0:02:51]}  a6 {[%clk 0:02:59]} 7. Qf3 {[%clk 0:02:51]}  Nf6 {[%clk 0:02:59]} 8. O-O-O {[%clk 0:02:49]}  Ne5 {[%clk 0:03:00]} 9. Qg3 {[%clk 0:02:49]}  b5 {[%clk 0:03:00]} 10. f4 {[%clk 0:02:47]}  Neg4 {[%clk 0:03:00]} 11. Bg1 {[%clk 0:02:45]}  h5 {[%clk 0:03:00]} 12. e5 {[%clk 0:02:43]}  b4 {[%clk 0:03:00]} 13. Na4 {[%clk 0:02:42]}  Nd5 {[%clk 0:02:59]} 14. Nb3 {[%clk 0:02:37]}  Bb7 {[%clk 0:02:32]} 15. Nac5 {[%clk 0:02:28]}  a5 {[%clk 0:02:24]} 16. Nxb7 {[%clk 0:02:24]}  Qxb7 {[%clk 0:02:25]} 17. h3 {[%clk 0:02:22]}  Nh6 {[%clk 0:02:23]} 18. Bd3 {[%clk 0:02:22]}  a4 {[%clk 0:02:19]} 19. Nd4 {[%clk 0:02:22]}  a3 {[%clk 0:01:35]} 20. b3 {[%clk 0:01:43]}  Nc3 {[%clk 0:01:33]} 21. Be3 {[%clk 0:01:40]}  Nxa2+ {[%clk 0:00:44]} 22. Kd2 {[%clk 0:01:39]}  Nc3 {[%clk 0:00:45]} 23. Ra1 {[%clk 0:01:39]}  Ne4+ {[%clk 0:00:39]} 24. Bxe4 {[%clk 0:01:38]}  Qxe4 {[%clk 0:00:39]} 25. Qf3 {[%clk 0:01:31]}  Qxf3 {[%clk 0:00:38]} 26. Nxf3 {[%clk 0:01:32]}  Nf5 {[%clk 0:00:37]} 27. g4 {[%clk 0:01:30]}  hxg4 {[%clk 0:00:37]} 28. hxg4 {[%clk 0:01:31]}  Rxh1 {[%clk 0:00:37]} 29. Rxh1 {[%clk 0:01:31]}  Ng3 {[%clk 0:00:33]} 30. Ra1 {[%clk 0:01:26]}  Rc8 {[%clk 0:00:16]} 31. Bd4 {[%clk 0:01:22]}  Bc5 {[%clk 0:00:13]} 32. c4 {[%clk 0:01:03]}  Bxd4 {[%clk 0:00:09]} 33. Nxd4 {[%clk 0:01:02]}  Ne4+ {[%clk 0:00:10]} 34. Ke3 {[%clk 0:00:54]}  Nc3 {[%clk 0:00:05]} 35. Nc2 {[%clk 0:00:53]}  Rb8 {[%clk 0:00:05]} 36. Kd3 {[%clk 0:00:52]}  Kd8 {[%clk 0:00:04]} 37. Nxb4 {[%clk 0:00:51]}  Rxb4 {[%clk 0:00:01]} 38. Kxc3 {[%clk 0:00:51]}  Rb7 {[%clk 0:00:02]} 39. Rxa3 {[%clk 0:00:51]}  Kc7 {[%clk 0:00:02]} 40. b4 {[%clk 0:00:50]}  Rb6 {[%clk 0:00:03]} 41. c5 {[%clk 0:00:49]}  Rb8 {[%clk 0:00:02]} 42. Kc4 {[%clk 0:00:49]}  Kc6 {[%clk 0:00:03]} 43. Ra6+ {[%clk 0:00:48]}  Kc7 {[%clk 0:00:03]} 44. b5 {[%clk 0:00:48]}  Rh8 {[%clk 0:00:03]} 45. Ra7+ {[%clk 0:00:48]}  Kb8 {[%clk 0:00:04]} 46. Rxd7 {[%clk 0:00:46]}  Rh4 {[%clk 0:00:05]} 47. Rxf7 {[%clk 0:00:42]}  Rxg4 {[%clk 0:00:06]} 48. b6 {[%clk 0:00:41]}  g5 {[%clk 0:00:06]} 49. Kb5 {[%clk 0:00:42]}  Rxf4 {[%clk 0:00:06]} 50. Rxf4 {[%clk 0:00:34]}  gxf4 {[%clk 0:00:07]} 51. Kc4 {[%clk 0:00:35]}  f3 {[%clk 0:00:07]} 52. Kd3 {[%clk 0:00:35]}  Kb7 {[%clk 0:00:08]} 53. Ke3 {[%clk 0:00:35]}  Kc6 {[%clk 0:00:08]} 1-0


[Site "https://www.chess.com"]

[Event "Titled Tuesday Blitz October 11 Early 2022"]
[White "Samaganova, Aleksandra"]
[Black "Sargsyan, Anna M."]
[WhiteFideId "13800221"]
[BlackFideId "13308130"]
[WhiteElo "1864"]
[BlackElo "2284"]
[Result "0-1"]
[Round "01"]
[TimeControl "180+1"]
[Date "2022.10.12"]
[WhiteClock "0:00:04"]
[BlackClock "0:00:56"]

1. c4 {[%clk 0:03:00]}  c6 {[%clk 0:02:59]} 2. Nf3 {[%clk 0:02:57]}  d5 {[%clk 0:03:00]} 3. e3 {[%clk 0:02:57]}  Nf6 {[%clk 0:03:00]} 4. Nc3 {[%clk 0:02:57]}  e6 {[%clk 0:03:00]} 5. d4 {[%clk 0:02:57]}  Nbd7 {[%clk 0:03:00]} 6. Bd3 {[%clk 0:02:58]}  dxc4 {[%clk 0:02:59]} 7. Bxc4 {[%clk 0:02:58]}  b5 {[%clk 0:02:59]} 8. Bd3 {[%clk 0:02:58]}  Bd6 {[%clk 0:02:59]} 9. O-O {[%clk 0:02:59]}  Bb7 {[%clk 0:02:59]} 10. a3 {[%clk 0:02:56]}  O-O {[%clk 0:03:00]} 11. b4 {[%clk 0:02:56]}  a5 {[%clk 0:03:00]} 12. Rb1 {[%clk 0:02:56]}  Qe7 {[%clk 0:02:58]} 13. Qb3 {[%clk 0:02:54]}  axb4 {[%clk 0:02:58]} 14. axb4 {[%clk 0:02:53]}  e5 {[%clk 0:02:59]} 15. Bf5 {[%clk 0:02:31]}  exd4 {[%clk 0:02:51]} 16. exd4 {[%clk 0:02:23]}  Nb6 {[%clk 0:02:52]} 17. Re1 {[%clk 0:02:14]}  Qc7 {[%clk 0:02:48]} 18. Bg5 {[%clk 0:02:03]}  Nfd5 {[%clk 0:02:48]} 19. Nxd5 {[%clk 0:01:39]}  Nxd5 {[%clk 0:02:49]} 20. Bd2 {[%clk 0:01:40]}  Ra4 {[%clk 0:02:39]} 21. Rbc1 {[%clk 0:01:20]}  Nxb4 {[%clk 0:02:31]} 22. Ne5 {[%clk 0:01:06]}  Nd5 {[%clk 0:02:20]} 23. g3 {[%clk 0:00:56]}  Rxd4 {[%clk 0:02:19]} 24. Nf3 {[%clk 0:00:47]}  Ra4 {[%clk 0:02:14]} 25. Bd3 {[%clk 0:00:31]}  Ra3 {[%clk 0:02:14]} 26. Qb1 {[%clk 0:00:29]}  h6 {[%clk 0:02:05]} 27. Bxb5 {[%clk 0:00:27]}  Rxf3 {[%clk 0:02:04]} 28. Be2 {[%clk 0:00:19]}  Rf6 {[%clk 0:02:02]} 29. Bf1 {[%clk 0:00:19]}  Qb6 {[%clk 0:01:59]} 30. Qxb6 {[%clk 0:00:17]}  Nxb6 {[%clk 0:02:00]} 31. Rb1 {[%clk 0:00:16]}  Bc7 {[%clk 0:01:59]} 32. Bg2 {[%clk 0:00:16]}  Ba8 {[%clk 0:01:53]} 33. Bc3 {[%clk 0:00:14]}  Re6 {[%clk 0:01:54]} 34. Red1 {[%clk 0:00:10]}  Nd5 {[%clk 0:01:53]} 35. Bd4 {[%clk 0:00:11]}  Rfe8 {[%clk 0:01:50]} 36. Rbc1 {[%clk 0:00:11]}  g5 {[%clk 0:01:49]} 37. Bxd5 {[%clk 0:00:10]}  Rd6 {[%clk 0:01:31]} 38. Bf3 {[%clk 0:00:08]}  Red8 {[%clk 0:01:31]} 39. Bb2 {[%clk 0:00:05]}  Rxd1+ {[%clk 0:01:31]} 40. Rxd1 {[%clk 0:00:06]}  Rxd1+ {[%clk 0:01:31]} 41. Bxd1 {[%clk 0:00:07]}  c5 {[%clk 0:01:31]} 42. Bb3 {[%clk 0:00:07]}  Kf8 {[%clk 0:01:29]} 43. Bc4 {[%clk 0:00:07]}  Ke7 {[%clk 0:01:27]} 44. Bg7 {[%clk 0:00:07]}  h5 {[%clk 0:01:26]} 45. Bc3 {[%clk 0:00:06]}  Bf3 {[%clk 0:01:25]} 46. Kf1 {[%clk 0:00:06]}  f5 {[%clk 0:01:20]} 47. Ke1 {[%clk 0:00:06]}  Bd8 {[%clk 0:01:15]} 48. Bd2 {[%clk 0:00:06]}  Kd6 {[%clk 0:01:15]} 49. Be3 {[%clk 0:00:06]}  Bf6 {[%clk 0:01:15]} 50. Kd2 {[%clk 0:00:06]}  h4 {[%clk 0:01:14]} 51. Kd3 {[%clk 0:00:05]}  h3 {[%clk 0:01:08]} 52. Kd2 {[%clk 0:00:05]}  g4 {[%clk 0:01:07]} 53. Bf1 {[%clk 0:00:05]}  Be5 {[%clk 0:01:01]} 54. Bc4 {[%clk 0:00:04]}  Bd5 {[%clk 0:01:00]} 55. Bb5 {[%clk 0:00:05]}  c4 {[%clk 0:00:59]} 56. Bh6 {[%clk 0:00:04]}  Kc5 {[%clk 0:00:59]} 57. Ba4 {[%clk 0:00:05]}  Kb4 {[%clk 0:00:59]} 58. Bd7 {[%clk 0:00:05]}  c3+ {[%clk 0:00:58]} 59. Kc1 {[%clk 0:00:05]}  Be4 {[%clk 0:00:58]} 60. Bf8+ {[%clk 0:00:05]}  Kc4 {[%clk 0:00:57]} 61. Be6+ {[%clk 0:00:05]}  Kd3 {[%clk 0:00:58]} 62. Bc8 {[%clk 0:00:05]}  Ke2 {[%clk 0:00:58]} 63. Bc5 {[%clk 0:00:05]}  Kf1 {[%clk 0:00:57]} 64. Ba6+ {[%clk 0:00:04]}  Kg2 {[%clk 0:00:57]} 65. f4 {[%clk 0:00:04]}  gxf3 {[%clk 0:00:57]} 66. Be3 {[%clk 0:00:04]}  Kxh2 {[%clk 0:00:56]} 67. Bf4 {[%clk 0:00:03]}  Bxf4+ {[%clk 0:00:55]} 68. gxf4 {[%clk 0:00:04]}  Kg2 {[%clk 0:00:56]} 0-1


[Site "https://www.chess.com"]

[Event "Titled Tuesday Blitz October 11 Early 2022"]
[White "Shuvalov, Evgenij"]
[Black "Mitrabha, Guha"]
[WhiteFideId "4187237"]
[BlackFideId "5057000"]
[WhiteElo "2049"]
[BlackElo "2526"]
[Result "0-1"]
[Round "01"]
[TimeControl "180+1"]
[Date "2022.10.11"]
[WhiteClock "0:00:06"]
[BlackClock "0:02:08"]

1. d4 {[%clk 0:02:56]}  Nf6 {[%clk 0:02:59]} 2. c4 {[%clk 0:02:55]}  e6 {[%clk 0:02:59]} 3. Nf3 {[%clk 0:02:55]}  c5 {[%clk 0:02:59]} 4. g3 {[%clk 0:02:51]}  cxd4 {[%clk 0:02:58]} 5. Nxd4 {[%clk 0:02:52]}  d5 {[%clk 0:02:59]} 6. Bg2 {[%clk 0:02:49]}  e5 {[%clk 0:02:59]} 7. Nc2 {[%clk 0:02:42]}  d4 {[%clk 0:02:59]} 8. O-O {[%clk 0:02:41]}  Nc6 {[%clk 0:03:00]} 9. e3 {[%clk 0:02:32]}  d3 {[%clk 0:02:56]} 10. Ne1 {[%clk 0:02:31]}  e4 {[%clk 0:02:56]} 11. Nc3 {[%clk 0:02:26]}  Bg4 {[%clk 0:02:56]} 12. f3 {[%clk 0:02:26]}  exf3 {[%clk 0:02:56]} 13. Bxf3 {[%clk 0:02:18]}  Bxf3 {[%clk 0:02:56]} 14. Rxf3 {[%clk 0:02:16]}  Ne5 {[%clk 0:02:55]} 15. Rf5 {[%clk 0:02:16]}  Nfg4 {[%clk 0:02:42]} 16. h3 {[%clk 0:02:02]}  g6 {[%clk 0:02:41]} 17. Rf4 {[%clk 0:01:58]}  Nf6 {[%clk 0:02:40]} 18. Rd4 {[%clk 0:01:55]}  Qc7 {[%clk 0:02:40]} 19. Nb5 {[%clk 0:01:42]}  Qb8 {[%clk 0:02:31]} 20. Kg2 {[%clk 0:00:53]}  Bc5 {[%clk 0:02:27]} 21. Nxd3 {[%clk 0:00:48]}  Bxd4 {[%clk 0:02:26]} 22. exd4 {[%clk 0:00:49]}  Nxd3 {[%clk 0:02:26]} 23. Qxd3 {[%clk 0:00:50]}  O-O {[%clk 0:02:26]} 24. Bf4 {[%clk 0:00:48]}  Qe8 {[%clk 0:02:26]} 25. Nd6 {[%clk 0:00:44]}  Qd7 {[%clk 0:02:26]} 26. c5 {[%clk 0:00:37]}  Qc6+ {[%clk 0:02:22]} 27. Kh2 {[%clk 0:00:36]}  Rad8 {[%clk 0:02:21]} 28. Bg5 {[%clk 0:00:32]}  Rxd6 {[%clk 0:02:21]} 29. cxd6 {[%clk 0:00:32]}  Nd5 {[%clk 0:02:21]} 30. Be7 {[%clk 0:00:25]}  Re8 {[%clk 0:02:18]} 31. Re1 {[%clk 0:00:23]}  Nb6 {[%clk 0:02:16]} 32. Re2 {[%clk 0:00:19]}  Nd7 {[%clk 0:02:15]} 33. Rc2 {[%clk 0:00:17]}  Qd5 {[%clk 0:02:13]} 34. Rc7 {[%clk 0:00:17]}  Nb6 {[%clk 0:02:11]} 35. Qb3 {[%clk 0:00:14]}  Qxd4 {[%clk 0:02:08]} 36. Bg5 {[%clk 0:00:11]}  Qf2+ {[%clk 0:02:07]} 37. Kh1 {[%clk 0:00:06]}  Re1# {[%clk 0:02:08]} 0-1


[Site "https://www.chess.com"]

[Event "Titled Tuesday Blitz October 11 Early 2022"]
[White "Slaby, Jerzy"]
[Black "Chigaev, Maksim"]
[WhiteFideId "1121405"]
[BlackFideId "4108116"]
[WhiteElo "2534"]
[BlackElo "2537"]
[Result "1/2-1/2"]
[Round "01"]
[TimeControl "180+1"]
[Date "2022.10.11"]
[WhiteClock "0:00:20"]
[BlackClock "0:00:03"]

1. Nf3 {[%clk 0:02:59]}  d5 {[%clk 0:02:58]} 2. g3 {[%clk 0:02:58]}  g6 {[%clk 0:02:58]} 3. Bg2 {[%clk 0:02:59]}  Bg7 {[%clk 0:02:59]} 4. O-O {[%clk 0:02:59]}  e5 {[%clk 0:02:59]} 5. d3 {[%clk 0:02:58]}  Ne7 {[%clk 0:03:00]} 6. c4 {[%clk 0:02:58]}  O-O {[%clk 0:02:59]} 7. cxd5 {[%clk 0:02:56]}  Nxd5 {[%clk 0:02:59]} 8. Nc3 {[%clk 0:02:57]}  Nb6 {[%clk 0:02:52]} 9. Be3 {[%clk 0:02:48]}  Nc6 {[%clk 0:02:50]} 10. a3 {[%clk 0:02:43]}  Re8 {[%clk 0:02:49]} 11. b4 {[%clk 0:02:37]}  a5 {[%clk 0:02:44]} 12. b5 {[%clk 0:02:36]}  Nd4 {[%clk 0:02:44]} 13. Rc1 {[%clk 0:02:28]}  a4 {[%clk 0:02:44]} 14. Bxd4 {[%clk 0:02:25]}  exd4 {[%clk 0:02:44]} 15. Ne4 {[%clk 0:02:25]}  Nd5 {[%clk 0:02:44]} 16. Rc4 {[%clk 0:02:15]}  Nb6 {[%clk 0:02:33]} 17. Rc2 {[%clk 0:02:07]}  Qe7 {[%clk 0:01:59]} 18. Qc1 {[%clk 0:02:02]}  Nd5 {[%clk 0:01:58]} 19. Re1 {[%clk 0:01:53]}  Ra5 {[%clk 0:01:51]} 20. Rc5 {[%clk 0:01:48]}  Nc3 {[%clk 0:01:46]} 21. Rc4 {[%clk 0:01:35]}  Nxb5 {[%clk 0:01:31]} 22. Qf4 {[%clk 0:01:02]}  Be6 {[%clk 0:01:26]} 23. Rc5 {[%clk 0:00:58]}  c6 {[%clk 0:01:20]} 24. Rec1 {[%clk 0:00:55]}  Nc3 {[%clk 0:00:43]} 25. R1xc3 {[%clk 0:00:54]}  dxc3 {[%clk 0:00:44]} 26. Rxa5 {[%clk 0:00:54]}  Qxa3 {[%clk 0:00:45]} 27. Rxa4 {[%clk 0:00:33]}  Qb2 {[%clk 0:00:35]} 28. Rb4 {[%clk 0:00:33]}  Qa1+ {[%clk 0:00:27]} 29. Bf1 {[%clk 0:00:31]}  Bh3 {[%clk 0:00:27]} 30. Ned2 {[%clk 0:00:26]}  cxd2 {[%clk 0:00:24]} 31. Nxd2 {[%clk 0:00:27]}  b5 {[%clk 0:00:17]} 32. Re4 {[%clk 0:00:26]}  Be6 {[%clk 0:00:11]} 33. h4 {[%clk 0:00:23]}  h5 {[%clk 0:00:10]} 34. Nf3 {[%clk 0:00:22]}  Qf6 {[%clk 0:00:09]} 35. Qe3 {[%clk 0:00:21]}  Qd8 {[%clk 0:00:08]} 36. Ng5 {[%clk 0:00:22]}  Bd7 {[%clk 0:00:09]} 37. Bg2 {[%clk 0:00:20]}  Rxe4 {[%clk 0:00:09]} 38. Bxe4 {[%clk 0:00:21]}  Qe8 {[%clk 0:00:08]} 39. Qc5 {[%clk 0:00:21]}  Bf8 {[%clk 0:00:08]} 40. Qc3 {[%clk 0:00:20]}  Bg7 {[%clk 0:00:08]} 41. Qb3 {[%clk 0:00:20]}  Kf8 {[%clk 0:00:03]} 42. Nh7+ {[%clk 0:00:20]}  Ke7 {[%clk 0:00:03]} 43. Ng5 {[%clk 0:00:21]}  Bf6 {[%clk 0:00:02]} 44. Qb4+ {[%clk 0:00:19]}  Kd8 {[%clk 0:00:03]} 45. Qa5+ {[%clk 0:00:19]}  Ke7 {[%clk 0:00:02]} 46. Qb4+ {[%clk 0:00:19]}  Kd8 {[%clk 0:00:03]} 47. Qa5+ {[%clk 0:00:19]}  Ke7 {[%clk 0:00:03]} 48. Qb4+ {[%clk 0:00:20]} 1/2-1/2


[Site "https://www.chess.com"]

[Event "Titled Tuesday Blitz October 11 Early 2022"]
[White "Smietanska, Wiktoria"]
[Black "Terzi, Alexei"]
[WhiteFideId "21869359"]
[BlackFideId "13505076"]
[WhiteElo "1854"]
[BlackElo "2172"]
[Result "0-1"]
[Round "01"]
[TimeControl "180+1"]
[Date "2022.10.12"]
[WhiteClock "0:00:07"]
[BlackClock "0:00:12"]

1. c4 {[%clk 0:03:00]}  c5 {[%clk 0:02:59]} 2. Nf3 {[%clk 0:03:00]}  Nc6 {[%clk 0:03:00]} 3. Nc3 {[%clk 0:03:00]}  Nf6 {[%clk 0:03:00]} 4. g3 {[%clk 0:02:59]}  g6 {[%clk 0:02:59]} 5. d4 {[%clk 0:02:59]}  cxd4 {[%clk 0:02:59]} 6. Nxd4 {[%clk 0:03:00]}  Bg7 {[%clk 0:02:59]} 7. Bg2 {[%clk 0:03:00]}  O-O {[%clk 0:02:59]} 8. O-O {[%clk 0:03:00]}  Qa5 {[%clk 0:02:59]} 9. Nc2 {[%clk 0:02:50]}  d6 {[%clk 0:02:56]} 10. Ne3 {[%clk 0:02:49]}  Be6 {[%clk 0:02:50]} 11. Ncd5 {[%clk 0:02:46]}  Bxd5 {[%clk 0:02:44]} 12. Nxd5 {[%clk 0:02:43]}  Nxd5 {[%clk 0:02:43]} 13. cxd5 {[%clk 0:02:41]}  Ne5 {[%clk 0:02:39]} 14. Bd2 {[%clk 0:02:35]}  Qa6 {[%clk 0:02:37]} 15. Bc3 {[%clk 0:02:34]}  Rac8 {[%clk 0:02:32]} 16. a3 {[%clk 0:02:26]}  Rc7 {[%clk 0:02:24]} 17. Rc1 {[%clk 0:02:26]}  Rc5 {[%clk 0:01:49]} 18. b4 {[%clk 0:02:15]}  Rc4 {[%clk 0:01:47]} 19. Qb3 {[%clk 0:02:07]}  Rfc8 {[%clk 0:01:44]} 20. Rfd1 {[%clk 0:01:57]}  b5 {[%clk 0:01:38]} 21. e3 {[%clk 0:01:41]}  Nd7 {[%clk 0:01:08]} 22. Bb2 {[%clk 0:01:36]}  Qa4 {[%clk 0:00:51]} 23. Qxa4 {[%clk 0:01:24]}  bxa4 {[%clk 0:00:50]} 24. Rxc4 {[%clk 0:01:01]}  Rxc4 {[%clk 0:00:49]} 25. Rc1 {[%clk 0:00:52]}  Nb6 {[%clk 0:00:46]} 26. Rb1 {[%clk 0:00:31]}  Rc2 {[%clk 0:00:44]} 27. Bxg7 {[%clk 0:00:30]}  Kxg7 {[%clk 0:00:45]} 28. e4 {[%clk 0:00:28]}  Nc4 {[%clk 0:00:33]} 29. Ra1 {[%clk 0:00:28]}  Rc3 {[%clk 0:00:28]} 30. Bf1 {[%clk 0:00:22]}  Nd2 {[%clk 0:00:24]} 31. Bg2 {[%clk 0:00:21]}  Kf6 {[%clk 0:00:22]} 32. f3 {[%clk 0:00:21]}  Ke5 {[%clk 0:00:21]} 33. Kf2 {[%clk 0:00:21]}  Nc4 {[%clk 0:00:20]} 34. Bf1 {[%clk 0:00:19]}  Rxa3 {[%clk 0:00:18]} 35. Rb1 {[%clk 0:00:16]}  Ra2+ {[%clk 0:00:18]} 36. Be2 {[%clk 0:00:14]}  a3 {[%clk 0:00:14]} 37. Ke1 {[%clk 0:00:12]}  Ne3 {[%clk 0:00:13]} 38. Bd3 {[%clk 0:00:08]}  Kd4 {[%clk 0:00:13]} 39. Be2 {[%clk 0:00:07]}  Rb2 {[%clk 0:00:12]} 40. Ra1 {[%clk 0:00:07]}  Nc2+ {[%clk 0:00:12]} 0-1


[Site "https://www.chess.com"]

[Event "Titled Tuesday Blitz October 11 Early 2022"]
[White "Sovetbekova, Nurai"]
[Black "Colas, Joshua"]
[WhiteFideId "13801910"]
[BlackFideId "2044447"]
[WhiteElo "1925"]
[BlackElo "2347"]
[Result "0-1"]
[Round "01"]
[TimeControl "180+1"]
[Date "2022.10.12"]
[WhiteClock "0:00:02"]
[BlackClock "0:00:07"]

1. d4 {[%clk 0:02:59]}  d5 {[%clk 0:01:55]} 2. c4 {[%clk 0:02:58]}  e6 {[%clk 0:01:55]} 3. Nf3 {[%clk 0:02:57]}  Nf6 {[%clk 0:01:54]} 4. g3 {[%clk 0:02:57]}  dxc4 {[%clk 0:01:51]} 5. Bg2 {[%clk 0:02:57]}  Nc6 {[%clk 0:01:48]} 6. O-O {[%clk 0:02:50]}  Rb8 {[%clk 0:01:48]} 7. a4 {[%clk 0:02:22]}  a6 {[%clk 0:01:41]} 8. a5 {[%clk 0:02:22]}  b5 {[%clk 0:01:37]} 9. axb6 {[%clk 0:02:22]}  cxb6 {[%clk 0:01:38]} 10. Bf4 {[%clk 0:02:06]}  Bd6 {[%clk 0:01:35]} 11. Ne5 {[%clk 0:02:06]}  Ne7 {[%clk 0:01:25]} 12. Bc6+ {[%clk 0:02:06]}  Kf8 {[%clk 0:01:22]} 13. Na3 {[%clk 0:01:43]}  b5 {[%clk 0:00:59]} 14. Bg2 {[%clk 0:01:37]}  Bb7 {[%clk 0:00:31]} 15. Bxb7 {[%clk 0:01:09]}  Rxb7 {[%clk 0:00:32]} 16. Nc2 {[%clk 0:01:02]}  Rb6 {[%clk 0:00:28]} 17. Qd2 {[%clk 0:00:54]}  h6 {[%clk 0:00:26]} 18. h4 {[%clk 0:00:39]}  Ned5 {[%clk 0:00:23]} 19. e4 {[%clk 0:00:37]}  Nxe4 {[%clk 0:00:18]} 20. Qe2 {[%clk 0:00:29]}  Nxf4 {[%clk 0:00:15]} 21. gxf4 {[%clk 0:00:25]}  Nf6 {[%clk 0:00:12]} 22. Ne3 {[%clk 0:00:21]}  Be7 {[%clk 0:00:11]} 23. Rfd1 {[%clk 0:00:19]}  Nd5 {[%clk 0:00:11]} 24. N3g4 {[%clk 0:00:16]}  Bxh4 {[%clk 0:00:10]} 25. Qf3 {[%clk 0:00:15]}  Bf6 {[%clk 0:00:10]} 26. f5 {[%clk 0:00:15]}  exf5 {[%clk 0:00:09]} 27. Qxf5 {[%clk 0:00:14]}  h5 {[%clk 0:00:10]} 28. Nd7+ {[%clk 0:00:08]}  Kg8 {[%clk 0:00:10]} 29. Ngxf6+ {[%clk 0:00:07]}  Nxf6 {[%clk 0:00:08]} 30. Nxb6 {[%clk 0:00:07]}  Qxb6 {[%clk 0:00:09]} 31. Qc8+ {[%clk 0:00:07]}  Kh7 {[%clk 0:00:09]} 32. Qf5+ {[%clk 0:00:07]}  g6 {[%clk 0:00:09]} 33. Qf3 {[%clk 0:00:06]}  Kg7 {[%clk 0:00:09]} 34. d5 {[%clk 0:00:06]}  Rd8 {[%clk 0:00:09]} 35. Rd2 {[%clk 0:00:06]}  Rd6 {[%clk 0:00:09]} 36. Rad1 {[%clk 0:00:06]}  Qc5 {[%clk 0:00:10]} 37. Qc3 {[%clk 0:00:05]}  b4 {[%clk 0:00:09]} 38. Qe5 {[%clk 0:00:05]}  h4 {[%clk 0:00:04]} 39. Rd4 {[%clk 0:00:05]}  c3 {[%clk 0:00:03]} 40. bxc3 {[%clk 0:00:04]}  bxc3 {[%clk 0:00:04]} 41. Rf4 {[%clk 0:00:05]}  c2 {[%clk 0:00:03]} 42. Rc1 {[%clk 0:00:05]}  Qxd5 {[%clk 0:00:04]} 43. Qb2 {[%clk 0:00:03]}  Qd1+ {[%clk 0:00:04]} 44. Kg2 {[%clk 0:00:03]}  Qd2 {[%clk 0:00:04]} 45. Rxf6 {[%clk 0:00:02]}  Rxf6 {[%clk 0:00:04]} 46. Rxc2 {[%clk 0:00:02]}  Qg5+ {[%clk 0:00:05]} 47. Kf1 {[%clk 0:00:03]}  Qg4 {[%clk 0:00:04]} 48. Rc6 {[%clk 0:00:02]}  Qh3+ {[%clk 0:00:05]} 49. Kg1 {[%clk 0:00:02]}  Qg4+ {[%clk 0:00:05]} 50. Kf1 {[%clk 0:00:02]}  Qd1+ {[%clk 0:00:05]} 51. Kg2 {[%clk 0:00:02]}  Qd5+ {[%clk 0:00:06]} 52. Kg1 {[%clk 0:00:02]}  Qxc6 {[%clk 0:00:07]} 0-1


[Site "https://www.chess.com"]

[Event "Titled Tuesday Blitz October 11 Early 2022"]
[White "Svane, Rasmus"]
[Black "Yaniuk, Volodymyr"]
[WhiteFideId "4657101"]
[BlackFideId "14133083"]
[WhiteElo "2674"]
[BlackElo "2141"]
[Result "1-0"]
[Round "01"]
[TimeControl "180+1"]
[Date "2022.10.11"]
[WhiteClock "0:00:15"]
[BlackClock "0:00:07"]

1. Nf3 {[%clk 0:03:00]}  Nf6 {[%clk 0:02:58]} 2. g3 {[%clk 0:03:00]}  d5 {[%clk 0:02:57]} 3. Bg2 {[%clk 0:03:00]}  Bg4 {[%clk 0:02:57]} 4. O-O {[%clk 0:03:00]}  c6 {[%clk 0:02:56]} 5. h3 {[%clk 0:03:01]}  Bxf3 {[%clk 0:02:56]} 6. Bxf3 {[%clk 0:03:01]}  Nbd7 {[%clk 0:02:56]} 7. d3 {[%clk 0:03:02]}  e5 {[%clk 0:02:56]} 8. e4 {[%clk 0:03:02]}  dxe4 {[%clk 0:02:57]} 9. dxe4 {[%clk 0:03:03]}  Bc5 {[%clk 0:02:57]} 10. Nd2 {[%clk 0:03:02]}  O-O {[%clk 0:02:57]} 11. a4 {[%clk 0:03:00]}  a5 {[%clk 0:02:56]} 12. Qe2 {[%clk 0:02:59]}  Qe7 {[%clk 0:02:54]} 13. Nb3 {[%clk 0:02:57]}  Bb6 {[%clk 0:02:52]} 14. Bd2 {[%clk 0:02:53]}  Nc5 {[%clk 0:02:47]} 15. Nxc5 {[%clk 0:02:51]}  Bxc5 {[%clk 0:02:45]} 16. Rfd1 {[%clk 0:02:50]}  Rfd8 {[%clk 0:02:43]} 17. Kg2 {[%clk 0:02:48]}  h6 {[%clk 0:02:42]} 18. Be1 {[%clk 0:02:45]}  Bb6 {[%clk 0:02:40]} 19. Qc4 {[%clk 0:02:42]}  Qe6 {[%clk 0:02:36]} 20. Qxe6 {[%clk 0:02:39]}  fxe6 {[%clk 0:02:37]} 21. Kf1 {[%clk 0:02:30]}  Rxd1 {[%clk 0:02:32]} 22. Rxd1 {[%clk 0:02:29]}  Rd8 {[%clk 0:02:32]} 23. Rxd8+ {[%clk 0:02:29]}  Bxd8 {[%clk 0:02:33]} 24. Bg2 {[%clk 0:02:20]}  Kf7 {[%clk 0:02:33]} 25. Ke2 {[%clk 0:02:20]}  Ne8 {[%clk 0:02:25]} 26. f4 {[%clk 0:02:00]}  exf4 {[%clk 0:02:18]} 27. gxf4 {[%clk 0:02:01]}  g5 {[%clk 0:02:18]} 28. Bd2 {[%clk 0:01:59]}  Nd6 {[%clk 0:02:15]} 29. b3 {[%clk 0:01:56]}  Ne8 {[%clk 0:01:57]} 30. Bf3 {[%clk 0:01:52]}  Ng7 {[%clk 0:01:54]} 31. Kd3 {[%clk 0:01:50]}  Ke8 {[%clk 0:01:43]} 32. Kc4 {[%clk 0:01:41]}  Kd7 {[%clk 0:01:37]} 33. c3 {[%clk 0:01:39]}  Ne8 {[%clk 0:01:37]} 34. Kd3 {[%clk 0:01:36]}  Nd6 {[%clk 0:01:26]} 35. Bg4 {[%clk 0:01:31]}  gxf4 {[%clk 0:01:21]} 36. Bxf4 {[%clk 0:01:32]}  Bg5 {[%clk 0:01:20]} 37. Bg3 {[%clk 0:01:28]}  Nf7 {[%clk 0:01:12]} 38. Bh5 {[%clk 0:01:28]}  Nd6 {[%clk 0:01:09]} 39. b4 {[%clk 0:01:22]}  axb4 {[%clk 0:01:04]} 40. cxb4 {[%clk 0:01:23]}  Be7 {[%clk 0:01:01]} 41. Bf4 {[%clk 0:01:21]}  Bg5 {[%clk 0:01:00]} 42. Be5 {[%clk 0:01:21]}  Nc8 {[%clk 0:00:58]} 43. Bd4 {[%clk 0:01:19]}  Be7 {[%clk 0:00:57]} 44. Bc3 {[%clk 0:01:15]}  Nb6 {[%clk 0:00:55]} 45. Bd1 {[%clk 0:01:14]}  Kc7 {[%clk 0:00:45]} 46. Bb3 {[%clk 0:01:10]}  Kd7 {[%clk 0:00:45]} 47. Ke3 {[%clk 0:01:08]}  Bg5+ {[%clk 0:00:44]} 48. Kf3 {[%clk 0:01:08]}  Ke7 {[%clk 0:00:42]} 49. Kg4 {[%clk 0:01:06]}  Nd7 {[%clk 0:00:42]} 50. h4 {[%clk 0:01:02]}  Be3 {[%clk 0:00:36]} 51. e5 {[%clk 0:00:48]}  c5 {[%clk 0:00:28]} 52. b5 {[%clk 0:00:47]}  Bd4 {[%clk 0:00:25]} 53. Bd2 {[%clk 0:00:19]}  Nxe5+ {[%clk 0:00:24]} 54. Kh5 {[%clk 0:00:20]}  Nf7 {[%clk 0:00:19]} 55. a5 {[%clk 0:00:19]}  Nd6 {[%clk 0:00:15]} 56. a6 {[%clk 0:00:18]}  bxa6 {[%clk 0:00:15]} 57. bxa6 {[%clk 0:00:18]}  c4 {[%clk 0:00:15]} 58. Bc2 {[%clk 0:00:18]}  c3 {[%clk 0:00:14]} 59. Bxh6 {[%clk 0:00:18]}  Nb5 {[%clk 0:00:14]} 60. Kg6 {[%clk 0:00:14]}  Na3 {[%clk 0:00:14]} 61. Bd3 {[%clk 0:00:15]}  c2 {[%clk 0:00:13]} 62. Bc1 {[%clk 0:00:15]}  Bc5 {[%clk 0:00:11]} 63. a7 {[%clk 0:00:13]}  Bxa7 {[%clk 0:00:06]} 64. Bxa3+ {[%clk 0:00:13]}  Kd7 {[%clk 0:00:07]} 65. Bxc2 {[%clk 0:00:13]}  Bd4 {[%clk 0:00:07]} 66. h5 {[%clk 0:00:13]}  e5 {[%clk 0:00:07]} 67. h6 {[%clk 0:00:13]}  Ke6 {[%clk 0:00:07]} 68. h7 {[%clk 0:00:13]}  e4 {[%clk 0:00:08]} 69. Bxe4 {[%clk 0:00:13]}  Kd7 {[%clk 0:00:07]} 70. Bf8 {[%clk 0:00:14]}  Ke8 {[%clk 0:00:07]} 71. Bg7 {[%clk 0:00:14]}  Bxg7 {[%clk 0:00:07]} 72. Kxg7 {[%clk 0:00:15]} 1-0


[Site "https://www.chess.com"]